[Event "39th Citta Arco Open 2017"]
[Site "Arco"]
[Date "2017.10.11"]
[Round "5.7"]
[White "Lezzerini, Marco"]
[Black "Molnar, Bela"]
[Result "1/2-1/2"]
[ECO "E68"]
[WhiteElo "2142"]
[BlackElo "2290"]
[Annotator "NA"]
[PlyCount "119"]
[EventDate "2017.??.??"]
[EventType "swiss"]
[EventCountry "ITA"]
[SourceTitle "playchess.com"]
[Source "ChessBase"]
[SourceQuality "1"]
[TimeControl "40/5400+30:1800+30"]

1. d4 {[%emt 0:00:30]} Nf6 {[%emt 0:01:00]} 2. c4 {[%emt 0:00:00]} d6 {[%emt 0:00:30]} 3. Nc3 {[%emt 0:00:00]} Nbd7 {[%emt 0:00:00]} 4. Nf3 {[%emt 0:01:30]} g6 {[%emt 0:00:00]} 5. g3 {[%emt 0:00:30]} Bg7 {[%emt 0:00:30]} 6. Bg2 {[%emt 0:00:00]} O-O {[%emt 0:00:30]} 7. O-O {[%emt 0:00:00]} e5 {[%emt 0:00:30]} 8. e4 {[%emt 0:00:30]} exd4 {[%emt 0:00:00]} 9. Nxd4 {[%emt 0:00:00]} Re8 {[%emt 0:00:00]} 10. h3 {[%emt 0:00:00]} a6 {[%emt 0:02:30] LiveBook: 725 Games} 11. Be3 {[%emt 0:00:30]} Rb8 {[%emt 0:00:00]} 12. b3 {[%emt 0:00:30]} Nc5 {[%emt 0:05:00]} 13. Qc2 {[%emt 0:00:30]} Bd7 {[%emt 0:00:30]} 14. Rad1 {[%emt 0:02:30]} Qc8 {[%emt 0:02:30]} 15. Kh2 {[%emt 0:00:30]} h6 {[%emt 0:03:30]} (15... b5 $1 $11 {remains equal.}) 16. Rfe1 {[%emt 0:09:30]} (16. b4 $16 Ne6 17. f4) 16... Ne6 {[%emt 0:02:30]} 17. f4 {[%emt 0:07:30]} Nxd4 {[%emt 0:06:30]} 18. Bxd4 {[%emt 0:00:30]} Bc6 {[%emt 0:02:30]} 19. Nd5 {[%emt 0:32:30]} Nd7 {[%emt 0:01:30]} 20. Bxg7 {[%emt 0:01:30]} Kxg7 {[%emt 0:00:30]} 21. Qc3+ {[%emt 0:00:00]} f6 {[%emt 0:00:30]} 22. h4 {[%emt 0:04:00]} Qd8 {[%emt 0:01:30]} 23. Bh3 {[%emt 0:01:30]} Rf8 {[%emt 0:08:30]} 24. Bxd7 {[%emt 0:05:30]} Qxd7 {[%emt 0:03:30]} 25. e5 {[%emt 0:13:11]} Bxd5 {[%emt 0:01:30]} 26. exf6+ {[%emt 0:01:25]} Rxf6 {[%emt 0:01:30]} 27. cxd5 {[%emt 0:00:02]} Kf7 {[%emt 0:00:30]} 28. Rd2 {[%emt 0:03:26]} Re8 {[%emt 0:05:30]} 29. Rxe8 {[%emt 0:00:15]} Qxe8 {[%emt 0:00:30]} 30. Qxc7+ {[%emt 0:00:05]} Qe7 {[%emt 0:00:00]} 31. Rc2 {[%emt 0:02:48]} Rf5 {[%emt 0:01:00]} 32. Qc8 {[%emt 0:03:23]} Kf6 {[%emt 0:00:30]} 33. Qc3+ {[%emt 0:00:39]} Kf7 {[%emt 0:00:30]} 34. Qc8 {[%emt 0:00:09]} Kf6 {[%emt 0:00:30]} 35. Qh8+ {[%emt 0:01:09]} Qg7 {[%emt 0:00:00]} 36. Qxg7+ {[%emt 0:01:52]} Kxg7 {[%emt 0:00:00]} 37. Rc7+ {[%emt 0:04:01]} Kf6 {[%emt 0:00:30]} 38. Rxb7 {[%emt 0:00:23]} Rxd5 {[%emt 0:00:00]} 39. Rb6 {[%emt 0:01:30]} Rd2+ {[%emt 0:01:00]} 40. Kh3 {[%emt 0:02:05]} Rxa2 {[%emt 0:33:30]} 41. Rxd6+ {[%emt 0:30:28]} Kg7 {[%emt 0:02:30]} 42. Rd7+ {[%emt 0:03:02]} Kf6 {[%emt 0:00:00]} 43. Rd6+ {[%emt 0:00:04]} Kg7 {[%emt 0:00:00]} 44. Rb6 {[%emt 0:00:00]} h5 {[%emt 0:00:00]} 45. g4 {[%emt 0:00:00]} hxg4+ {[%emt 0:00:00]} 46. Kxg4 {[%emt 0:00:00]} Rg2+ {[%emt 0:00:00]} 47. Kf3 {[%emt 0:00:00]} Rh2 {[%emt 0:00:00]} 48. Rxa6 {[%emt 0:00:00]} Rh3+ {[%emt 0:00:00]} 49. Kg4 {[%emt 0:00:00]} Rxb3 {[%emt 0:00:00]} 50. h5 {[%emt 0:00:00]} gxh5+ {[%emt 0:00:00]} 51. Kxh5 {[%emt 0:00:00]} Rg3 {[%emt 0:00:00]} 52. Ra5 {[%emt 0:00:00]} Kf6 {[%emt 0:00:00]} 53. Ra8 {[%emt 0:00:00]} Kf7 {[%emt 0:00:00]} 54. Ra6 {[%emt 0:00:00]} Rg1 {[%emt 0:00:00]} 55. Ra5 {[%emt 0:00:00]} Kf6 {[%emt 0:00:00]} 56. Rg5 {[%emt 0:00:00]} Rh1+ $11 {[%emt 0:00:00]} 57. Kg4 {[%emt 0:00:00]} Rg1+ {[%emt 0:00:00]} 58. Kf3 {[%emt 0:00:00]} Rxg5 {[%emt 0:00:00]} 59. fxg5+ {[%emt 0:00:00]} Kxg5 {[%emt 0:00:00]} 60. Ke4 {[%emt 0:00:00]} 1/2-1/2

[Event "39th Citta Arco Open 2017"]
[Site "Arco"]
[Date "2017.10.11"]
[Round "5.8"]
[White "Lochte, Thomas"]
[Black "Luciani, Carlo"]
[Result "1-0"]
[ECO "C51"]
[WhiteElo "2139"]
[BlackElo "2261"]
[Annotator "ChessBase"]
[PlyCount "95"]
[EventDate "2017.??.??"]
[EventType "swiss"]
[EventCountry "ITA"]
[SourceTitle "playchess.com"]
[Source "ChessBase"]
[SourceQuality "1"]
[TimeControl "40/5400+30:1800+30"]

1. e4 {[%emt 0:00:30]} e5 {[%emt 0:03:00]} 2. Nf3 {[%emt 0:00:00]} Nc6 {[%emt 0:00:30]} 3. Bc4 {[%emt 0:00:00]} Bc5 {[%emt 0:00:30]} 4. b4 {[%emt 0:00:30]} Bxb4 {[%emt 0:00:30]} 5. c3 {[%emt 0:00:00]} Be7 {[%emt 0:00:30]} 6. d4 {[%emt 0:00:00]} Na5 {[%emt 0:01:30]} 7. Be2 {[%emt 0:02:30]} exd4 {[%emt 0:01:30]} 8. Qxd4 {[%emt 0:00:00]} Kf8 {[%emt 0:01:30]} 9. O-O {[%emt 0:04:00]} Nc6 {[%emt 0:00:30]} 10. Qd3 {[%emt 0:06:30]} d6 {[%emt 0:01:30]} 11. Bf4 {[%emt 0:05:30]} Bf6 {[%emt 0:07:30]} 12. Nbd2 {[%emt 0:05:30]} Nge7 {[%emt 0:06:30]} 13. Nc4 {[%emt 0:00:30]} Ng6 {[%emt 0:06:30]} 14. Bg3 {[%emt 0:01:30]} h5 {[%emt 0:03:30]} 15. h3 {[%emt 0:04:30]} Qe7 {[%emt 0:03:30]} 16. Nxd6 {[%emt 0:01:30]} Nge5 {[%emt 0:04:30]} 17. Nxe5 {[%emt 0:07:30]} Nxe5 {[%emt 0:05:30]} 18. Nxc8 {[%emt 0:03:30]} Rxc8 {[%emt 0:00:00]} 19. Qe3 {[%emt 0:01:30]} Qa3 {[%emt 0:03:00]} 20. Rfb1 {[%emt 0:03:30]} b6 {[%emt 0:03:30]} 21. Rb3 {[%emt 0:03:30]} Qe7 {[%emt 0:01:30]} 22. Rd1 {[%emt 0:10:30]} g6 {[%emt 0:06:30]} 23. f4 {[%emt 0:02:30]} Nd7 {[%emt 0:03:30]} 24. e5 {[%emt 0:00:00]} Nc5 {[%emt 0:03:30]} 25. Qf2 {[%emt 0:00:00]} Bg7 {[%emt 0:01:30]} 26. Bh4 {[%emt 0:05:30]} Qe6 {[%emt 0:02:30]} 27. Rb4 {[%emt 0:01:30]} Kg8 {[%emt 0:03:30]} 28. g4 {[%emt 0:07:30]} Qxa2 {[%emt 0:06:30]} 29. gxh5 {[%emt 0:03:30]} Ne6 {[%emt 0:06:40]} 30. Bg3 {[%emt 0:08:31]} Bf8 {[%emt 0:01:25]} 31. hxg6 {[%emt 0:03:53]} Bc5 {[%emt 0:00:49]} 32. gxf7+ {[%emt 0:00:21]} Kf8 {[%emt 0:01:20]} 33. Rbd4 {[%emt 0:00:03]} Qc2 {[%emt 0:02:01]} 34. Kg2 {[%emt 0:01:22]} Qxc3 {[%emt 0:01:22]} 35. Rc4 {[%emt 0:00:50]} Qb2 {[%emt 0:03:55]} 36. Qf3 {[%emt 0:00:05]} Nd4 {[%emt 0:00:50]} 37. Rcxd4 {[%emt 0:00:50]} Bxd4 {[%emt 0:00:04]} 38. Qg4 {[%emt 0:02:41]} Rb8 {[%emt 0:02:28]} 39. Bf2 {[%emt 0:01:16]} c5 {[%emt 0:01:07]} 40. Bxd4 {[%emt 0:01:00]} cxd4 {[%emt 0:30:03]} 41. f5 {[%emt 0:30:51]} d3 {[%emt 0:00:59]} 42. Rxd3 {[%emt 0:02:12]} Qxe5 {[%emt 0:00:14]} 43. Rg3 {[%emt 0:03:11]} Qd5+ {[%emt 0:00:00]} 44. Kh2 {[%emt 0:00:00]} Qe5 {[%emt 0:00:00]} 45. f6 {[%emt 0:00:00]} Qxf6 {[%emt 0:00:00]} 46. Qb4+ {[%emt 0:00:00]} Kxf7 {[%emt 0:00:00]} 47. Rf3 {[%emt 0:00:00]} Qxf3 {[%emt 0:00:00]} 48. Bxf3 {[%emt 0:00:00]} 1-0

[Event "39th Citta Arco Open 2017"]
[Site "Arco"]
[Date "2017.10.11"]
[Round "5.9"]
[White "Ruecker, Benjamin"]
[Black "Valenti, Giuseppe"]
[Result "0-1"]
[ECO "D37"]
[WhiteElo "2261"]
[BlackElo "2149"]
[Annotator "NA"]
[PlyCount "68"]
[EventDate "2017.??.??"]
[EventType "swiss"]
[EventCountry "ITA"]
[SourceTitle "playchess.com"]
[Source "ChessBase"]
[SourceQuality "1"]
[TimeControl "40/5400+30:1800+30"]

1. c4 e6 2. Nf3 Nf6 3. Nc3 d5 4. d4 Be7 5. Bf4 O-O 6. e3 c5 7. dxc5 {LiveBook: 2477 Games} Bxc5 8. Qc2 Qa5 9. a3 Nc6 10. Rd1 Be7 11. Be2 {D37: Queen's Gambit Declined: 5 Bf4} a6 12. Nd2 Qb6 13. Nb3 dxc4 $146 ({Predecessor:} 13... h6 14. Na4 Qd8 15. O-O Bd6 16. c5 Bc7 17. Bxc7 Qxc7 18. Nd2 e5 19. Nb6 {½-½ (38) Kunte,A (2550)-Shetty,R (2369) Visakhapatnam 2004}) 14. Bxc4 e5 15. Bg5 Bg4 16. Rd2 Be6 17. Bxe6 fxe6 18. O-O Rac8 19. Nc1 Na5 20. Nd3 Nc4 21. Re2 e4 22. Nf4 Rfd8 23. Qb1 Nd2 24. Qa2 Kf7 25. Rc1 h6 26. Bxf6 Bxf6 27. Ree1 Bxc3 28. bxc3 Qb3 29. Qa1 b5 30. Ne2 Nc4 31. Ng3 Nd2 32. Nf1 Rd3 33. Nxd2 Rxd2 $19 34. a4 Ra2 0-1

[Event "39th Citta Arco Open 2017"]
[Site "Arco"]
[Date "2017.10.11"]
[Round "5.10"]
[White "Panjkovic, Aleksandar"]
[Black "Nazarenus, Moritz"]
[Result "1/2-1/2"]
[ECO "A14"]
[WhiteElo "2130"]
[BlackElo "2241"]
[Annotator "NA"]
[PlyCount "45"]
[EventDate "2017.??.??"]
[EventType "swiss"]
[EventCountry "ITA"]
[SourceTitle "playchess.com"]
[Source "ChessBase"]
[SourceQuality "1"]
[TimeControl "40/5400+30:1800+30"]

1. c4 {[%emt 0:00:30]} c6 {[%emt 0:01:00]} 2. Nf3 {[%emt 0:00:30]} d5 {[%emt 0:00:00]} 3. b3 {[%emt 0:00:30]} Nf6 {[%emt 0:01:00]} 4. Bb2 {[%emt 0:01:30]} e6 {[%emt 0:02:30]} 5. g3 {[%emt 0:01:30]} Nbd7 {[%emt 0:01:30]} 6. Bg2 {[%emt 0:00:30] LiveBook: 144 Games} Be7 {[%emt 0:01:30]} 7. O-O {[%emt 0:00:30]} O-O {[%emt 0:00:30]} 8. d3 {[%emt 0:00:30]} Re8 {[%emt 0:01:30]} 9. Nbd2 {[%emt 0:01:30]} Qc7 {[%emt 0:01:30] A14: English Opening: 1...e6 with b3 by White} 10. Rc1 {[%emt 0:00:00]} a5 {[%emt 0:01:30]} 11. a3 {[%emt 0:00:00]} Nf8 $146 {[%emt 0:06:30]} ({Predecessor:} 11... Bd6 12. Qc2 Qd8 13. d4 Qe7 14. c5 Bc7 15. e4 b6 16. Rfe1 Bb7 17. exd5 Nxd5 {0-1 (49) Prusikin,M (2475)-Jonkman,H (2310) Schwaebisch Gmuend 1999}) 12. Rc2 {[%emt 0:01:30]} N6d7 {[%emt 0:02:30]} 13. Qa1 {[%emt 0:03:30]} Bf6 {[%emt 0:00:30]} 14. e4 {[%emt 0:02:30]} Bxb2 {[%emt 0:00:30]} 15. Qxb2 {[%emt 0:00:30]} Nf6 {[%emt 0:08:30]} 16. Re1 {[%emt 0:01:30]} dxe4 {[%emt 0:00:00]} 17. Nxe4 $11 {[%emt 0:01:30]} Nxe4 {[%emt 0:01:00]} 18. Rxe4 {[%emt 0:05:30]} b6 {[%emt 0:03:30]} 19. d4 {[%emt 0:18:30]} Bb7 {[%emt 0:07:30]} 20. c5 {[%emt 0:03:30]} Nd7 {[%emt 0:02:30]} 21. Ne5 {[%emt 0:03:30]} Rad8 {[%emt 0:04:30]} 22. Re1 {[%emt 0:27:30]} bxc5 {[%emt 0:03:30]} 23. Nxd7 {[%emt 0:05:31]} 1/2-1/2

[Event "39th Citta Arco Open 2017"]
[Site "Arco"]
[Date "2017.10.11"]
[Round "5.11"]
[White "Medancic, Rikard"]
[Black "Astengo, Corrado"]
[Result "1-0"]
[ECO "D02"]
[WhiteElo "2225"]
[BlackElo "2125"]
[Annotator "NA"]
[PlyCount "79"]
[EventDate "2017.??.??"]
[EventType "swiss"]
[EventCountry "ITA"]
[SourceTitle "playchess.com"]
[Source "ChessBase"]
[SourceQuality "1"]
[TimeControl "40/5400+30:1800+30"]

1. Nf3 {[%emt 0:05:30]} d5 {[%emt 0:01:00]} 2. g3 {[%emt 0:00:30]} Nf6 {[%emt 0:00:30]} 3. Bg2 {[%emt 0:00:00]} e6 {[%emt 0:00:30]} 4. O-O {[%emt 0:00:00]} Be7 {[%emt 0:00:00]} 5. b3 {[%emt 0:01:30]} c5 {[%emt 0:02:00]} 6. d4 {[%emt 0:00:00]} Nc6 {[%emt 0:00:30]} 7. Bb2 {[%emt 0:00:00]} O-O {[%emt 0:02:30]} 8. Nbd2 {[%emt 0:02:30]} cxd4 {[%emt 0:03:30] LiveBook: 8 Partien} 9. Nxd4 {[%emt 0:00:00]} Nxd4 {[%emt 0:04:30] D02: 1 d4 d5 2 Nf3 sidelines, including 2...Nf6 3 g3 and 2...Nf6 3 Bf4} (9... Bd7 10. N4f3 Qb6 11. e3 Rfd8 12. c4 Be8 13. Qb1 Rac8 14. Rd1 h6 15. Nd4 Qc7 16. a3 Nxd4 17. Bxd4 Bc6 {½-½ (30) Pap,G (2549)-Blomqvist,E (2515) Lille 2016}) 10. Bxd4 {[%emt 0:00:00]} b6 {[%emt 0:00:30]} 11. e4 {[%emt 0:02:30]} Ba6 {[%emt 0:03:30]} 12. Re1 {[%emt 0:04:30]} Rc8 $146 {[%emt 0:02:30]} ({Predecessor:} 12... dxe4 13. Nxe4 Rc8 14. c4 Nxe4 15. Bxe4 Rc7 16. Be5 Rd7 17. Qh5 {1-0 (25) Gillies,A-Smith,C (1543) Edinburgh 2015}) 13. e5 {[%emt 0:13:30]} Nd7 {[%emt 0:00:30]} 14. a4 {[%emt 0:00:30]} Qc7 {[%emt 0:05:30]} 15. c3 {[%emt 0:01:30]} Bd3 {[%emt 0:01:30]} 16. Qf3 {[%emt 0:03:30]} Bg6 {[%emt 0:00:30]} 17. h4 {[%emt 0:01:30]} f6 {[%emt 0:08:30]} 18. exf6 {[%emt 0:04:30]} Bxf6 {[%emt 0:04:30]} 19. Qe2 {[%emt 0:03:30]} e5 {[%emt 0:03:30]} 20. Bxd5+ {[%emt 0:01:30]} Kh8 {[%emt 0:00:30]} 21. Be3 {[%emt 0:00:30]} Qxc3 {[%emt 0:00:30]} 22. Qg4 {[%emt 0:11:30]} Rcd8 {[%emt 0:08:30]} 23. h5 {[%emt 0:04:30]} Bd3 {[%emt 0:04:30]} 24. Rac1 {[%emt 0:02:30]} Qa5 {[%emt 0:02:30]} 25. Bc6 {[%emt 0:05:30]} Nb8 {[%emt 0:03:30]} 26. Be4 {[%emt 0:01:30]} Qb4 {[%emt 0:01:30]} 27. Qf5 {[%emt 0:04:30]} Bxe4 {[%emt 0:01:30]} 28. Qxe4 {[%emt 0:00:30]} Qxe4 {[%emt 0:05:30]} 29. Nxe4 {[%emt 0:01:30]} Na6 {[%emt 0:00:30]} 30. h6 {[%emt 0:01:30]} Kg8 {[%emt 0:05:30]} 31. Rc4 {[%emt 0:04:30]} Be7 {[%emt 0:03:30]} 32. hxg7 {[%emt 0:01:15]} Kxg7 {[%emt 0:00:30]} 33. Rc6 {[%emt 0:01:19]} Kg8 {[%emt 0:05:56]} 34. Kg2 {[%emt 0:01:02]} Rd3 {[%emt 0:01:31]} 35. Re6 {[%emt 0:04:15]} Rf7 {[%emt 0:02:27]} 36. Bh6 {[%emt 0:04:26]} Rxb3 {[%emt 0:03:14]} 37. Rd1 {[%emt 0:02:23]} Nc5 {[%emt 0:01:17]} 38. Rd8+ {[%emt 0:05:24]} Rf8 {[%emt 0:03:05]} 39. Rxe7 {[%emt 0:00:12]} Rxd8 {[%emt 0:04:07]} 40. Nf6+ {[%emt 0:00:07]} 1-0

[Event "39th Citta Arco Open 2017"]
[Site "Arco"]
[Date "2017.10.11"]
[Round "5.12"]
[White "Molina, Fabrizio"]
[Black "Pedersen, Henrik Bolding"]
[Result "1/2-1/2"]
[ECO "D02"]
[WhiteElo "2208"]
[BlackElo "2125"]
[Annotator "NA"]
[PlyCount "42"]
[EventDate "2017.??.??"]
[EventType "swiss"]
[EventCountry "ITA"]
[SourceTitle "playchess.com"]
[Source "ChessBase"]
[SourceQuality "1"]
[TimeControl "40/5400+30:1800+30"]

1. d4 {[%emt 0:00:30]} e6 {[%emt 0:01:00]} 2. Nf3 {[%emt 0:00:30]} d5 {[%emt 0:02:30]} 3. Bf4 {[%emt 0:01:30]} Bd6 {[%emt 0:03:30]} 4. Bg3 {[%emt 0:00:30]} Nf6 {[%emt 0:02:30]} 5. e3 {[%emt 0:00:30] LiveBook: 202 Games} Bxg3 {[%emt 0:04:30]} 6. hxg3 {[%emt 0:00:30]} Qd6 {[%emt 0:01:30]} 7. Nbd2 {[%emt 0:02:30]} Nbd7 {[%emt 0:04:30]} 8. c4 $11 {[%emt 0:03:30]} c6 {[%emt 0:10:30]} 9. Qc2 {[%emt 0:06:30]} e5 {[%emt 0:05:30]} 10. cxd5 {[%emt 0:06:30]} cxd5 {[%emt 0:00:30]} 11. dxe5 {[%emt 0:02:30]} Nxe5 {[%emt 0:00:30]} 12. Nxe5 {[%emt 0:05:30]} Qxe5 {[%emt 0:00:30]} 13. Bb5+ {[%emt 0:05:30]} Bd7 {[%emt 0:07:30]} 14. Bxd7+ {[%emt 0:00:30]} Nxd7 {[%emt 0:00:30]} 15. Rc1 {[%emt 0:12:30]} h6 {[%emt 0:09:30]} 16. Nf3 {[%emt 0:03:30]} Qe4 {[%emt 0:05:30]} 17. Rh4 {[%emt 0:10:30]} Qe7 {[%emt 0:13:30]} 18. Nd4 {[%emt 0:07:30]} O-O {[%emt 0:04:30]} 19. Rg4 {[%emt 0:07:30]} Qb4+ {[%emt 0:03:18]} 20. Qc3 {[%emt 0:01:45]} Qxc3+ {[%emt 0:01:35]} 21. Rxc3 {[%emt 0:00:15]} Nf6 {[%emt 0:00:52]} 1/2-1/2

[Event "39th Citta Arco Open 2017"]
[Site "Arco"]
[Date "2017.10.11"]
[Round "5.13"]
[White "De Santis, Alessio"]
[Black "Vezzani, Stefano"]
[Result "1-0"]
[ECO "A48"]
[WhiteElo "2162"]
[BlackElo "2121"]
[Annotator "NA"]
[PlyCount "63"]
[EventDate "2017.??.??"]
[EventType "swiss"]
[EventCountry "ITA"]
[SourceTitle "playchess.com"]
[Source "ChessBase"]
[SourceQuality "1"]
[TimeControl "40/5400+30:1800+30"]

1. b3 {[%emt 0:06:30]} d6 {[%emt 0:01:00]} 2. Bb2 {[%emt 0:00:30]} Nd7 {[%emt 0:00:30]} 3. e3 {[%emt 0:00:30]} Ngf6 {[%emt 0:00:00]} 4. d4 {[%emt 0:01:30]} g6 {[%emt 0:00:00]} 5. Nf3 {[%emt 0:00:30]} Bg7 {[%emt 0:00:30]} 6. c4 {[%emt 0:00:30]} c6 {[%emt 0:00:30]} 7. Be2 {[%emt 0:05:30]} a6 {[%emt 0:00:30]} 8. a4 {[%emt 0:01:30]} a5 {[%emt 0:00:00]} 9. Nc3 {[%emt 0:05:30]} O-O {[%emt 0:00:00]} 10. O-O {[%emt 0:02:30]} Qc7 $14 {[%emt 0:01:30]} 11. Rc1 {[%emt 0:01:30]} Rd8 {[%emt 0:02:30]} 12. Qc2 {[%emt 0:00:30]} e5 {[%emt 0:02:30]} 13. Rfd1 {[%emt 0:02:30]} exd4 {[%emt 0:00:30]} 14. exd4 {[%emt 0:00:30]} Nf8 {[%emt 0:03:30]} 15. d5 {[%emt 0:07:30]} Bf5 {[%emt 0:04:30]} 16. Qd2 {[%emt 0:02:30]} Ng4 {[%emt 0:04:30]} 17. Nd4 {[%emt 0:08:30]} Bh6 {[%emt 0:04:30]} 18. f4 {[%emt 0:03:30]} Qe7 {[%emt 0:02:30]} 19. Nxf5 {[%emt 0:10:30]} gxf5 {[%emt 0:00:30]} 20. Bxg4 {[%emt 0:00:30]} fxg4 {[%emt 0:00:30]} 21. Re1 {[%emt 0:00:30]} Qh4 {[%emt 0:29:30]} 22. g3 {[%emt 0:02:30]} Qh3 {[%emt 0:00:30]} 23. Ne4 {[%emt 0:04:30]} f5 {[%emt 0:06:30]} 24. Nf6+ {[%emt 0:25:30]} Kf7 {[%emt 0:00:00]} 25. dxc6 {[%emt 0:02:47]} bxc6 {[%emt 0:00:00]} 26. Qd3 {[%emt 0:01:37]} Kg6 {[%emt 0:00:30]} 27. Ng8 {[%emt 0:00:12]} Ra7 {[%emt 0:08:30]} 28. Ne7+ {[%emt 0:00:06]} Rxe7 {[%emt 0:00:00]} 29. Rxe7 {[%emt 0:00:02]} Bxf4 {[%emt 0:00:00]} 30. Rf1 {[%emt 0:01:09]} Bg5 {[%emt 0:00:30]} 31. Qxf5+ {[%emt 0:00:14]} Kh5 {[%emt 0:01:30]} 32. Rxh7+ {[%emt 0:00:12]} 1-0

[Event "39th Citta Arco Open 2017"]
[Site "Arco"]
[Date "2017.10.11"]
[Round "5.14"]
[White "Mastroddi, Emiliano"]
[Black "Passerotti, Pierluigi"]
[Result "0-1"]
[ECO "B08"]
[WhiteElo "2053"]
[BlackElo "2210"]
[Annotator "NA"]
[PlyCount "74"]
[EventDate "2017.??.??"]
[EventType "swiss"]
[EventCountry "ITA"]
[SourceTitle "playchess.com"]
[Source "ChessBase"]
[SourceQuality "1"]
[TimeControl "40/5400+30:1800+30"]

1. d4 {[%emt 0:02:30]} d6 {[%emt 0:15:00]} 2. e4 {[%emt 0:02:30]} Nf6 {[%emt 0:00:30]} 3. Nc3 {[%emt 0:00:30]} g6 {[%emt 0:00:30]} 4. Nf3 {[%emt 0:02:30]} Bg7 {[%emt 0:00:30]} 5. h3 {[%emt 0:00:00]} O-O {[%emt 0:00:00]} 6. Be2 {[%emt 0:02:00]} a6 {[%emt 0:03:00]} 7. a4 {[%emt 0:00:00] LiveBook: 42 Games B08: Pirc Defence: Classical System} a5 {[%emt 0:13:30]} 8. O-O {[%emt 0:06:00]} Na6 $146 {[%emt 0:00:30]} ({Predecessor:} 8... Nc6 9. Be3 Nd7 10. Nb5 Nb4 11. c3 Na6 12. Qd2 c6 13. Na3 Nc7 14. Bh6 Re8 15. Bxg7 Kxg7 {1-0 (47) Atabayev,Y (2473)-Maghsoodloo,P (2584) Doha 2016}) 9. Re1 {[%emt 0:03:30]} Nb4 {[%emt 0:03:30]} 10. Bf1 {[%emt 0:02:30]} e5 {[%emt 0:04:30]} 11. Nb5 {[%emt 0:07:30]} exd4 {[%emt 0:04:30]} 12. Nbxd4 {[%emt 0:01:30]} Re8 {[%emt 0:03:30]} 13. c3 {[%emt 0:02:30]} Na6 {[%emt 0:00:30]} 14. Bc4 {[%emt 0:06:30]} Nxe4 {[%emt 0:30:45]} 15. Bxf7+ {[%emt 0:05:30]} Kxf7 {[%emt 0:00:12]} 16. Rxe4 {[%emt 0:00:30]} Rxe4 {[%emt 0:00:11]} 17. Ng5+ {[%emt 0:00:00]} Kg8 {[%emt 0:01:05]} 18. Nxe4 {[%emt 0:05:00]} d5 {[%emt 0:05:04]} 19. Bg5 {[%emt 0:05:30]} Qf8 {[%emt 0:00:01]} 20. Ng3 {[%emt 0:04:30]} Qf7 {[%emt 0:02:00]} 21. Qc2 {[%emt 0:05:30]} Bd7 {[%emt 0:00:30]} 22. Re1 {[%emt 0:00:30]} Re8 {[%emt 0:01:02]} 23. Rxe8+ {[%emt 0:00:30]} Bxe8 {[%emt 0:00:21]} 24. Be3 {[%emt 0:04:30]} Nc5 {[%emt 0:01:28]} 25. b3 {[%emt 0:01:30]} Nd7 {[%emt 0:03:47]} 26. f4 {[%emt 0:18:46]} Qe7 {[%emt 0:01:01]} 27. Qd2 {[%emt 0:01:25]} c6 {[%emt 0:00:04]} 28. f5 {[%emt 0:00:39]} Nc5 {[%emt 0:01:38]} 29. Bg5 {[%emt 0:04:07]} Qe5 {[%emt 0:00:27]} 30. Bf4 {[%emt 0:00:17]} Ne4 {[%emt 0:01:09]} 31. Bxe5 {[%emt 0:02:54]} Nxd2 {[%emt 0:00:02]} 32. Bxg7 {[%emt 0:01:15]} Kxg7 {[%emt 0:00:02]} 33. Kf2 {[%emt 0:00:58]} Kf6 {[%emt 0:00:10]} 34. Ke3 {[%emt 0:00:48]} Nb1 {[%emt 0:00:33]} 35. Kd3 {[%emt 0:01:18]} (35. c4 $15) 35... gxf5 $17 {[%emt 0:00:48]} 36. Ngxf5 {[%emt 0:00:56]} c5 {[%emt 0:00:22]} 37. Kc2 {[%emt 0:00:25]} cxd4 {[%emt 0:00:00]} 0-1

[Event "39th Citta Arco Open 2017"]
[Site "Arco"]
[Date "2017.10.11"]
[Round "5.15"]
[White "Battistella, Stefano"]
[Black "De Eccher, Stefano"]
[Result "1/2-1/2"]
[ECO "D11"]
[WhiteElo "2041"]
[BlackElo "2193"]
[Annotator "ChessBase"]
[PlyCount "95"]
[EventDate "2017.??.??"]
[EventType "swiss"]
[EventCountry "ITA"]
[SourceTitle "playchess.com"]
[Source "ChessBase"]
[SourceQuality "1"]
[TimeControl "40/5400+30:1800+30"]

1. Nf3 {[%emt 0:00:30]} d5 {[%emt 0:01:00]} 2. c4 {[%emt 0:00:00]} c6 {[%emt 0:00:00]} 3. d4 {[%emt 0:00:00]} Nf6 {[%emt 0:00:00]} 4. g3 {[%emt 0:00:00]} Bf5 {[%emt 0:01:30]} 5. Nc3 {[%emt 0:00:00]} e6 {[%emt 0:00:30]} 6. Nh4 {[%emt 0:00:30]} Bg4 {[%emt 0:00:30]} 7. Qb3 {[%emt 0:06:30]} Qb6 {[%emt 0:17:30]} 8. h3 {[%emt 0:00:30]} Bh5 {[%emt 0:03:30]} 9. g4 {[%emt 0:00:30]} Bg6 {[%emt 0:00:30]} 10. Nxg6 {[%emt 0:00:30]} hxg6 {[%emt 0:00:30]} 11. Bg2 {[%emt 0:01:30]} Nbd7 {[%emt 0:14:30]} 12. O-O {[%emt 0:00:30]} Bd6 {[%emt 0:09:30]} 13. Rd1 {[%emt 0:07:30]} Qxb3 {[%emt 0:10:30]} 14. axb3 {[%emt 0:00:00]} a6 {[%emt 0:00:30]} 15. f3 {[%emt 0:17:00]} O-O-O {[%emt 0:05:30]} 16. e4 {[%emt 0:11:30]} dxe4 {[%emt 0:00:30]} 17. fxe4 {[%emt 0:02:30]} e5 {[%emt 0:00:30]} 18. g5 {[%emt 0:09:30]} Nh5 {[%emt 0:02:30]} 19. c5 {[%emt 0:05:30]} Be7 {[%emt 0:01:30]} 20. b4 {[%emt 0:03:30]} exd4 {[%emt 0:00:30]} 21. Rxd4 {[%emt 0:05:30]} Ne5 {[%emt 0:00:30]} 22. Be3 {[%emt 0:01:30]} Nd3 {[%emt 0:03:30]} 23. Na4 {[%emt 0:02:30]} Rxd4 {[%emt 0:03:30]} 24. Bxd4 {[%emt 0:00:00]} Bxg5 {[%emt 0:01:30]} 25. Rd1 {[%emt 0:01:00]} Rd8 {[%emt 0:05:30]} 26. Nb6+ {[%emt 0:00:30]} Kc7 {[%emt 0:00:31]} 27. Nd5+ {[%emt 0:04:30]} cxd5 {[%emt 0:01:27]} 28. Rxd3 {[%emt 0:00:30]} dxe4 {[%emt 0:01:23]} 29. Be5+ {[%emt 0:00:30]} Kc8 {[%emt 0:00:18]} 30. Rxd8+ {[%emt 0:00:30]} Bxd8 {[%emt 0:00:21]} 31. Bxe4 {[%emt 0:00:30]} Bf6 {[%emt 0:00:18]} 32. Bc3 {[%emt 0:03:45]} Nf4 {[%emt 0:03:26]} 33. Bxf6 {[%emt 0:10:31]} gxf6 {[%emt 0:00:10]} 34. Kh2 {[%emt 0:00:06]} f5 {[%emt 0:02:30]} 35. Bc2 {[%emt 0:00:30]} Kd7 {[%emt 0:01:23]} 36. Kg3 {[%emt 0:00:31]} Nd5 {[%emt 0:00:36]} 37. Ba4+ {[%emt 0:01:12]} Ke6 {[%emt 0:01:23]} 38. b5 {[%emt 0:00:53]} axb5 {[%emt 0:01:00]} 39. Bxb5 {[%emt 0:00:03]} Nb4 {[%emt 0:00:42]} 40. Bc4+ {[%emt 0:00:49]} Kf6 {[%emt 0:31:15]} 41. h4 {[%emt 0:31:32]} Kg7 {[%emt 0:03:08]} 42. Kf4 {[%emt 0:00:00]} f6 {[%emt 0:00:00]} 43. h5 {[%emt 0:00:00]} Kh6 {[%emt 0:00:00]} 44. hxg6 {[%emt 0:00:00]} Kxg6 {[%emt 0:00:00]} 45. b3 {[%emt 0:00:00]} Nc6 {[%emt 0:00:00]} 46. Bd5 {[%emt 0:00:00]} Nb4 {[%emt 0:00:00]} 47. Bc4 {[%emt 0:00:00]} Nc6 {[%emt 0:00:00]} 48. Bd3 1/2-1/2